bitfinex/quotes_BTCUSD_20250829
["timestamp","ask_amount","ask_price","bid_price","bid_amount"]
[1756436529902,0.38583055,111680.0,111670.0,0.17909913]
[1756436530101,0.38583055,111680.0,111670.0,0.18234913]
[1756436530302,0.56498905,111690.0,111680.0,0.17908309]
[1756436530512,0.57541677,111690.0,111680.0,0.32944309]
[1756436530738,0.56702103,111690.0,111680.0,0.33269309]
[1756436530918,0.17908309,111680.0,111670.0,0.18234913]
[1756436531095,0.56491364,111680.0,111670.0,0.33266913]
[1756436531296,0.56491364,111680.0,111670.0,0.33465913]
[1756436531613,0.56491364,111680.0,111670.0,0.33765913]
[1756436532272,0.56689364,111680.0,111670.0,0.33765913]
[1756436535401,0.56491364,111680.0,111670.0,0.33765913]
[1756436535583,0.17908309,111680.0,111670.0,0.33765913]
[1756436535789,0.56491364,111680.0,111670.0,0.33765913]
[1756436538023,0.56689364,111680.0,111670.0,0.18209913]
[1756436538227,0.56689364,111680.0,111670.0,0.33440913]
[1756436538444,0.56689364,111680.0,111670.0,0.33751913]
[1756436542266,0.38781055,111680.0,111670.0,0.33751913]
[1756436543425,0.56491364,111680.0,111670.0,0.33751913]
[1756436543638,0.17921048,111690.0,111670.0,0.33751913]
[1756436543770,0.38781055,111680.0,111670.0,0.33751913]
[1756436544367,0.56689364,111680.0,111670.0,0.33751913]
[1756436544560,0.56689364,111680.0,111670.0,0.003]
[1756436544756,0.56969364,111680.0,111670.0,0.15332]
[1756436546189,0.56969364,111680.0,111670.0,0.003]
[1756436546402,0.56969364,111680.0,111670.0,0.15332]
[1756436548107,0.56969364,111680.0,111670.0,0.003]
[1756436548326,1.12140322,111680.0,111670.0,0.003]
[1756436548562,1.06969166,111680.0,111670.0,0.15332]
[1756436548750,1.24693866,111680.0,111670.0,0.15332]
[1756436548885,1.22106751,111680.0,111670.0,0.15332]
[1756436549094,1.22106751,111680.0,111670.0,0.15232]
[1756436549314,1.56106751,111680.0,111670.0,0.002]
[1756436549592,1.67523498,111680.0,111670.0,0.002]
[1756436549793,1.61211671,111680.0,111670.0,0.002]
[1756436550150,1.59533134,111680.0,111670.0,0.002]
[1756436550360,0.17909913,111670.0,111660.0,0.19153677]
[1756436550691,0.657996,111670.0,111660.0,0.19153677]
[1756436551872,0.657996,111670.0,111660.0,0.19253677]
[1756436552691,0.657996,111670.0,111660.0,0.04221677]
[1756436553025,0.657996,111670.0,111660.0,0.19253677]
[1756436553222,0.75122933,111670.0,111660.0,0.04221677]
[1756436553423,0.75122933,111670.0,111660.0,0.19253677]
[1756436553967,0.684924,111670.0,111660.0,0.19253677]
[1756436555038,0.682134,111670.0,111660.0,0.19253677]
[1756436557057,0.682134,111670.0,111660.0,0.19153677]
[1756436557536,0.682134,111670.0,111660.0,0.19353677]
[1756436557915,0.682134,111670.0,111660.0,0.15232]
[1756436558215,0.682134,111670.0,111660.0,0.15332]
[1756436560828,0.20602713,111670.0,111660.0,0.33762517]
[1756436561003,0.62976383,111690.0,111670.0,0.17908744]
[1756436561366,1.1308127,111690.0,111680.0,0.33459309]
[1756436561562,1.1308127,111690.0,111680.0,0.15551]
[1756436561823,1.1327927,111690.0,111680.0,0.15551]
[1756436562361,1.1337927,111690.0,111680.0,0.15551]
[1756436562775,1.1327927,111690.0,111680.0,0.15551]
[1756436562992,1.1337927,111690.0,111680.0,0.15551]
[1756436563665,1.1337927,111690.0,111680.0,0.33459309]
[1756436564001,1.04351638,111690.0,111680.0,0.15551]
[1756436564208,0.60389638,111690.0,111680.0,0.15551]
[1756436567413,0.21806583,111690.0,111680.0,0.15551]
[1756436567565,0.60191638,111690.0,111680.0,0.33683162]
[1756436567765,0.60191638,111690.0,111680.0,0.33459309]
[1756436568604,0.60191638,111690.0,111680.0,0.15551]
[1756436569667,0.60390638,111690.0,111680.0,0.15551]
[1756436569948,0.21807583,111690.0,111680.0,0.15551]
[1756436570122,0.60390638,111690.0,111680.0,0.15551]
[1756436571411,0.60390638,111690.0,111680.0,0.15236]
[1756436571641,0.60390638,111690.0,111680.0,0.15028]
[1756436572199,0.17908309,111680.0,111670.0,0.25107659]
[1756436572380,0.56491364,111680.0,111670.0,0.39825659]
[1756436572581,0.56491364,111680.0,111670.0,0.40351659]
[1756436572919,0.38583055,111680.0,111670.0,0.40351659]
[1756436573569,0.56491364,111680.0,111670.0,0.40451659]
[1756436574831,0.56491364,111680.0,111670.0,0.39551659]
[1756436575828,0.17908309,111680.0,111670.0,0.39551659]
[1756436576063,0.56491364,111680.0,111670.0,0.39551659]
[1756436577514,0.56491364,111680.0,111670.0,0.21642]
[1756436577773,0.56491364,111680.0,111670.0,0.39551913]
[1756436578819,0.56689364,111680.0,111670.0,0.39551913]
[1756436579510,0.56491364,111680.0,111670.0,0.39551913]
[1756436580182,0.17908309,111680.0,111670.0,0.24523913]
[1756436580385,0.56689364,111680.0,111670.0,0.06614]
[1756436580788,0.56689364,111680.0,111670.0,0.21642]
[1756436580987,0.56689364,111680.0,111670.0,0.39551913]
[1756436581225,0.17908309,111680.0,111670.0,0.39551913]
[1756436581434,0.56491364,111680.0,111670.0,0.39551913]
[1756436581891,0.56689364,111680.0,111670.0,0.39551913]
[1756436582057,0.56491364,111680.0,111670.0,0.39551913]
[1756436582544,0.17908309,111680.0,111670.0,0.39551913]
[1756436582714,0.56491364,111680.0,111670.0,0.21642]
[1756436582937,0.56689364,111680.0,111670.0,0.21642]
[1756436583217,0.56491364,111680.0,111670.0,0.39551913]
[1756436583864,0.64029111,111680.0,111670.0,0.06088]
[1756436584071,0.64029111,111680.0,111670.0,0.21116]
[1756436584259,1.11441798,111680.0,111670.0,0.001]
[1756436584459,1.14308913,111680.0,111670.0,0.001]
[1756436584664,1.17001513,111680.0,111670.0,0.15128]
[1756436584863,1.17001513,111680.0,111670.0,0.001]
[1756436584864,1.66029513,111680.0,111670.0,0.001]
[1756436590308,0.17911517,111660.0,111650.0,0.22038]
[1756436590527,0.56494572,111660.0,111650.0,0.22254]
[1756436590763,0.74351836,111660.0,111630.0,0.28392082]
[1756436591029,0.5649778,111640.0,111630.0,0.24803566]
[1756436591237,0.5649778,111640.0,111630.0,0.40047566]
[1756436591442,0.5669678,111640.0,111630.0,0.11423373]
[1756436591614,0.5669678,111640.0,111630.0,0.26451373]
[1756436592361,0.5669678,111640.0,111630.0,0.26499216]
[1756436592762,0.5669678,111640.0,111630.0,0.25973216]
[1756436592895,0.5669678,111640.0,111630.0,0.21963843]
[1756436593361,0.5669678,111640.0,111630.0,0.06935843]
[1756436593547,1.04109467,111640.0,111630.0,0.21963843]
[1756436593752,0.65526412,111640.0,111630.0,0.15875843]
[1756436593961,0.73898404,111640.0,111630.0,0.15875843]
[1756436594362,0.73898404,111640.0,111630.0,0.15575843]
[1756436594609,0.74177404,111640.0,111630.0,0.00547843]
[1756436594810,0.76871004,111640.0,111630.0,0.00547843]
[1756436595190,0.76592004,111640.0,111630.0,0.00547843]
[1756436595493,0.76592004,111640.0,111630.0,0.15575843]
[1756436596356,0.76592004,111640.0,111630.0,0.15075843]
[1756436596559,0.76592004,111640.0,111630.0,0.15175843]
[1756436596710,0.47467181,111640.0,111630.0,0.15175843]
[1756436596915,0.6628543,111640.0,111630.0,0.15075843]
[1756436597326,0.6628543,111640.0,111630.0,0.15175843]
[1756436598737,0.6628543,111640.0,111630.0,0.15476843]
[1756436599309,0.6359183,111640.0,111630.0,0.15476843]
[1756436602739,0.6359183,111640.0,111630.0,0.15175843]
[1756436602901,0.6359183,111640.0,111630.0,0.15476843]
[1756436603096,0.6372283,111640.0,111630.0,0.15476843]
[1756436604977,0.6372283,111640.0,111630.0,0.00147843]
[1756436605187,0.6372283,111640.0,111630.0,0.00448843]
[1756436606746,0.6371883,111640.0,111630.0,0.00448843]
[1756436607846,1.02301885,111640.0,111630.0,0.00147843]
[1756436608053,1.60159517,111640.0,111630.0,0.00147843]
[1756436608269,1.62746632,111640.0,111630.0,0.00147843]
[1756436608521,1.62828632,111640.0,111630.0,0.00147843]
[1756436609093,1.53999,111640.0,111630.0,0.00147843]
[1756436609526,1.40643618,111640.0,111630.0,0.00047843]
[1756436609731,1.55671618,111640.0,111630.0,0.00047843]
[1756436610124,1.55671618,111640.0,111630.0,0.00147843]
[1756436610322,1.55671618,111640.0,111630.0,0.00047843]
[1756436610524,1.6450125,111640.0,111630.0,0.00047843]
[1756436610821,1.6719505,111640.0,111630.0,0.00047843]
[1756436611581,1.6729461,111640.0,111630.0,0.00047843]
[1756436613115,1.68131296,111640.0,111630.0,0.00047843]
[1756436615666,1.59301664,111640.0,111630.0,0.00047843]
[1756436616130,1.59931483,111640.0,111630.0,0.00047843]
[1756436616577,1.59935483,111640.0,111630.0,0.00047843]
[1756436617454,1.57348368,111640.0,111630.0,0.00047843]
[1756436618851,1.59959329,111640.0,111630.0,0.00047843]
[1756436619027,1.68788961,111640.0,111630.0,0.00047843]
[1756436619459,1.68706961,111640.0,111630.0,0.00047843]
[1756436619612,1.57266368,111640.0,111630.0,0.00047843]
[1756436622031,1.56432059,111640.0,111630.0,0.00047843]
[1756436622287,1.59201795,111640.0,111630.0,0.00047843]
[1756436623034,1.5836426,111640.0,111630.0,0.00047843]
[1756436623236,1.59202446,111640.0,111630.0,0.00047843]
[1756436623436,1.61800667,111640.0,111630.0,0.00047843]
[1756436625133,1.46768667,111640.0,111630.0,0.00047843]
[1756436625272,1.59202446,111640.0,111630.0,0.00348843]
[1756436625729,1.57525963,111640.0,111630.0,0.00348843]
[1756436626051,1.59202162,111640.0,111630.0,0.00047843]
[1756436627080,1.59202162,111640.0,111630.0,0.00348843]
[1756436627382,1.60683109,111640.0,111630.0,0.00348843]
[1756436628140,1.60683109,111640.0,111630.0,0.00047843]
[1756436628495,1.60682761,111640.0,111630.0,0.00047843]
[1756436628693,1.22099706,111640.0,111630.0,0.00047843]
[1756436628859,1.20618754,111640.0,111630.0,0.00047843]
[1756436629361,1.2352647,111640.0,111630.0,0.00361843]
[1756436631313,1.2352647,111640.0,111630.0,0.00047843]
[1756436632766,1.66320521,111640.0,111630.0,0.00047843]
[1756436632975,1.75778954,111640.0,111630.0,0.00047843]
[1756436634414,1.66949322,111640.0,111630.0,0.00047843]
[1756436636352,1.65273137,111640.0,111630.0,0.00047843]
[1756436636483,1.66951175,111640.0,111630.0,0.00047843]
[1756436640036,1.66951972,111640.0,111630.0,0.00047843]
[1756436640560,0.51988166,111630.0,111620.0,0.00314]
[1756436640761,2.10000195,111630.0,111620.0,0.00314]
[1756436640994,2.10000195,111630.0,111620.0,0.00522]
[1756436642215,2.09373286,111630.0,111620.0,0.00622]
[1756436645129,2.08533371,111630.0,111620.0,0.00622]
[1756436646284,1.21689629,111630.0,111620.0,0.00622]
[1756436646607,2.08533371,111630.0,111620.0,0.00622]
[1756436647970,2.08664371,111630.0,111620.0,0.00622]
[1756436648172,2.08533371,111630.0,111620.0,0.00622]
[1756436652663,2.0685354,111630.0,111620.0,0.00622]
[1756436652807,2.08533945,111630.0,111620.0,0.00622]
[1756436653223,2.08664945,111630.0,111620.0,0.00622]
[1756436654837,2.17494577,111630.0,111620.0,0.00414]
[1756436655050,2.17494577,111630.0,111620.0,0.001]
[1756436655259,2.17494577,111630.0,111620.0,0.00414]
[1756436655675,2.17853777,111630.0,111620.0,0.00414]
[1756436659446,2.17853777,111630.0,111620.0,0.001]
[1756436659681,2.17853672,111630.0,111620.0,0.00393]
[1756436660493,2.21386747,111630.0,111620.0,0.001]
[1756436660851,2.22016836,111630.0,111620.0,0.001]
[1756436661542,0.51917935,111620.0,111610.0,0.0002]
[1756436661732,1.32623107,111620.0,111610.0,0.0002]
[1756436661939,1.32754107,111620.0,111610.0,0.0002]
[1756436662339,1.35448307,111620.0,111610.0,0.0002]
[1756436663117,1.32927893,111620.0,111610.0,0.0002]
[1756436663328,1.36075843,111620.0,111610.0,0.0002]
[1756436663743,1.21143843,111620.0,111610.0,0.0002]
[1756436663972,1.36175843,111620.0,111610.0,0.0002]
[1756436664910,1.34788843,111620.0,111610.0,0.0002]
[1756436665116,1.36256589,111620.0,111610.0,0.0002]
[1756436665345,6.35913189,111620.0,111610.0,0.0002]
[1756436665716,6.20881189,111620.0,111610.0,0.0002]
[1756436665924,6.35913189,111620.0,111610.0,0.0002]
[1756436666585,6.20663272,111620.0,111610.0,0.0002]
[1756436666788,6.35613272,111620.0,111610.0,0.0002]
[1756436666991,6.27322978,111620.0,111610.0,0.0002]
[1756436667196,6.24712017,111620.0,111610.0,0.0002]
[1756436670969,6.7030977,111620.0,111610.0,0.0002]
[1756436671193,6.72920731,111620.0,111610.0,0.0002]
[1756436671347,6.24712017,111620.0,111610.0,0.0002]
[1756436671684,6.33541649,111620.0,111610.0,0.0002]
[1756436672116,6.18509649,111620.0,111610.0,0.0002]
[1756436672314,6.33541649,111620.0,111610.0,0.0002]
[1756436673714,6.33535075,111620.0,111610.0,0.0002]
[1756436676872,6.09673443,111620.0,111610.0,0.0002]
[1756436677075,6.24705443,111620.0,111610.0,0.0002]
[1756436677290,6.09673443,111620.0,111610.0,0.0002]
[1756436677478,6.24705443,111620.0,111610.0,0.0002]
[1756436679551,6.09673443,111620.0,111610.0,0.0002]
[1756436679868,6.33535075,111620.0,111610.0,0.0002]
[1756436680654,6.33534565,111620.0,111610.0,0.0002]
[1756436681714,6.18502565,111620.0,111610.0,0.0002]
[1756436681864,6.33534565,111620.0,111610.0,0.0002]
[1756436682061,6.33534565,111620.0,111610.0,0.00313]
[1756436682269,6.33534565,111620.0,111610.0,0.0002]
[1756436684208,6.33535348,111620.0,111610.0,0.0002]
[1756436684343,6.33535544,111620.0,111610.0,0.0002]
[1756436684752,6.76957531,111620.0,111610.0,0.0002]
[1756436685125,6.76957748,111620.0,111610.0,0.0002]
[1756436686316,6.33535877,111620.0,111610.0,0.0002]
[1756436686453,6.18503877,111620.0,111610.0,0.0002]
[1756436686630,0.66464774,111620.0,111610.0,0.00515]
[1756436686830,1.24918645,111620.0,111610.0,0.00515]
[1756436687898,1.24919073,111620.0,111610.0,0.00515]
[1756436688178,0.81497202,111620.0,111610.0,0.00515]
[1756436688428,1.24919073,111620.0,111610.0,0.00515]
[1756436688790,1.27497848,111620.0,111610.0,0.00515]
[1756436689191,0.81497202,111620.0,111610.0,0.00515]
[1756436689391,1.24919073,111620.0,111610.0,0.00515]
[1756436691087,0.81497202,111620.0,111610.0,0.00515]
[1756436691294,1.24919073,111620.0,111610.0,0.00515]
[1756436691745,1.09887073,111620.0,111610.0,0.00515]
[1756436691957,0.46031049,111620.0,111610.0,0.00515]
[1756436692164,1.2345292,111620.0,111610.0,0.00515]
[1756436692372,1.21777721,111620.0,111610.0,0.00515]
[1756436693417,1.16958529,111620.0,111610.0,0.00515]
[1756436695517,0.7835585,111620.0,111610.0,0.00515]
[1756436695737,1.16958529,111620.0,111610.0,0.00515]
[1756436696126,0.7835585,111620.0,111610.0,0.00515]
[1756436696450,1.16958529,111620.0,111610.0,0.00515]
[1756436697768,1.17089529,111620.0,111610.0,0.00515]
[1756436698110,1.29610285,111620.0,111610.0,0.0002]
[1756436698715,1.31158573,111620.0,111610.0,0.0002]
[1756436699079,1.31076573,111620.0,111610.0,0.0002]
[1756436699907,0.92473894,111620.0,111610.0,0.0002]
[1756436700110,1.22842657,111620.0,111610.0,0.0002]
[1756436700627,1.20231696,111620.0,111610.0,0.0002]
[1756436701029,1.05068696,111620.0,111610.0,0.00541]
[1756436701237,1.18630408,111620.0,111610.0,0.00541]
[1756436701440,0.80027729,111620.0,111610.0,0.00541]
[1756436701646,0.7835185,111620.0,111610.0,0.00541]
[1756436702398,1.16954529,111620.0,111610.0,0.00541]
[1756436703139,1.23359159,111620.0,111610.0,0.0002]
[1756436703434,1.25662144,111620.0,111610.0,0.0002]
[1756436703775,1.25662157,111620.0,111610.0,0.0002]
[1756436703983,1.25116018,111620.0,111610.0,0.0002]
[1756436704187,1.26499517,111620.0,111610.0,0.0002]
[1756436704411,1.29110478,111620.0,111610.0,0.0002]
[1756436704613,0.8987979,111620.0,111610.0,0.0002]
[1756436704819,1.26368603,111620.0,111610.0,0.00541]
[1756436704977,1.26499603,111620.0,111610.0,0.00541]
[1756436705176,1.26499603,111620.0,111610.0,0.0002]
[1756436705385,1.29110564,111620.0,111610.0,0.0002]
[1756436706388,1.73270564,111620.0,111610.0,0.0002]
[1756436707625,1.70758215,111620.0,111610.0,0.0002]
[1756436707831,1.73270683,111620.0,111610.0,0.0002]
[1756436708005,1.73352683,111620.0,111610.0,0.0002]
[1756436709158,1.73270683,111620.0,111610.0,0.0002]
[1756436712579,1.29110683,111620.0,111610.0,0.0002]
[1756436713929,1.09477273,111620.0,111610.0,0.0002]
[1756436714131,1.27395208,111620.0,111610.0,0.0002]
[1756436714577,1.2112224,111620.0,111610.0,0.0002]
[1756436719679,1.0609424,111620.0,111610.0,0.0002]
[1756436719881,1.18511279,111620.0,111610.0,0.00333]
[1756436720081,1.18511279,111620.0,111610.0,0.0002]
[1756436720290,1.2112224,111620.0,111610.0,0.0002]
[1756436720484,1.30033872,111620.0,111610.0,0.0002]
[1756436720798,1.27422911,111620.0,111610.0,1e-08]
[1756436721005,0.2065772,111610.0,111600.0,0.0002]
[1756436721234,0.86259256,111610.0,111600.0,0.0002]
[1756436721573,0.86390256,111610.0,111600.0,0.0002]
[1756436721785,0.95176509,111610.0,111600.0,0.0002]
[1756436722255,0.95176509,111610.0,111600.0,0.0012]
[1756436724427,0.95176509,111610.0,111600.0,0.0002]
[1756436724641,0.95376509,111610.0,111600.0,0.0002]
[1756436725152,0.9611218,111610.0,111600.0,0.0002]
[1756436725472,0.9621218,111610.0,111600.0,0.0002]
[1756436726776,0.9631218,111610.0,111600.0,0.0002]
[1756436727804,6.34653459,111610.0,111600.0,0.0002]
[1756436727974,6.71309639,111610.0,111600.0,0.0002]
[1756436728188,6.3270696,111610.0,111600.0,0.0002]
[1756436728389,6.71391639,111610.0,111600.0,0.0002]
[1756436728754,6.69926467,111610.0,111600.0,0.0002]
[1756436728948,6.71391742,111610.0,111600.0,0.0002]
[1756436729427,6.73485624,111610.0,111600.0,1e-08]
[1756436729644,0.54659325,111600.0,111590.0,0.00064805]
[1756436729818,6.74240305,111600.0,111590.0,0.00064805]
[1756436730021,6.74371305,111600.0,111590.0,0.00064805]
[1756436730230,6.74370776,111600.0,111590.0,0.00064805]
[1756436730433,6.74730176,111600.0,111590.0,0.00064805]
[1756436730960,6.7487796,111600.0,111590.0,0.00064805]
[1756436731720,6.76180468,111600.0,111590.0,0.00064805]
[1756436732142,6.74606514,111600.0,111590.0,0.00064805]
[1756436732378,6.76280176,111600.0,111590.0,0.00064805]
[1756436733007,6.76380176,111600.0,111590.0,0.00064805]
[1756436733415,6.76280176,111600.0,111590.0,0.00377805]
[1756436733841,6.76380176,111600.0,111590.0,0.00064805]
[1756436735470,6.76380176,111600.0,111590.0,0.00377805]
[1756436735715,6.74705254,111600.0,111590.0,0.00377805]
[1756436735893,6.76378415,111600.0,111590.0,0.00377805]
[1756436736087,6.61350415,111600.0,111590.0,0.00377805]
[1756436736275,6.73640236,111600.0,111590.0,0.00377805]
[1756436736678,6.73640216,111600.0,111590.0,0.00377805]
[1756436737065,6.73640216,111600.0,111590.0,0.00064805]
[1756436739508,6.73640216,111600.0,111590.0,0.00377805]
[1756436739685,6.73640216,111600.0,111590.0,0.00064805]
[1756436740132,6.73640216,111600.0,111560.0,0.0002]
[1756436740295,6.73640216,111600.0,111520.0,0.00496333]
[1756436740296,0.17930787,111540.0,111520.0,0.00496333]
[1756436740496,0.38602679,111530.0,111520.0,0.18789735]
[1756436740717,0.56535073,111530.0,111520.0,0.2900488]
[1756436740860,0.17932394,111530.0,111520.0,0.07288082]
[1756436741065,0.56535073,111530.0,111520.0,0.07288082]
[1756436741464,0.56535073,111530.0,111520.0,0.00225]
[1756436741692,0.56582798,111530.0,111520.0,0.029206]
[1756436741840,0.56582798,111530.0,111520.0,0.00225]
[1756436742269,0.6541243,111530.0,111520.0,0.00538]
[1756436742472,0.26809751,111530.0,111520.0,0.00538]
[1756436742671,0.6541243,111530.0,111520.0,0.00538]
[1756436743350,0.51934002,111520.0,111510.0,0.00333]
[1756436743563,1.01034797,111520.0,111510.0,0.0002]
[1756436743741,1.16066797,111520.0,111510.0,0.00217]
[1756436743935,1.01034797,111520.0,111510.0,0.0053]
[1756436744127,0.026965,111520.0,111510.0,0.18689806]
[1756436744338,0.17980119,111530.0,111520.0,0.003]
[1756436744543,0.17980119,111530.0,111520.0,0.18386002]
[1756436744544,0.00047725,111530.0,111520.0,0.18386002]
[1756436745377,0.56582798,111530.0,111520.0,0.15496]
[1756436745596,0.67896561,111530.0,111520.0,0.00197]
[1756436746308,1.03563905,111530.0,111520.0,0.00197]
[1756436746534,0.64961226,111530.0,111520.0,0.00197]
[1756436746716,1.03563905,111530.0,111520.0,0.00197]
[1756436746874,1.01079774,111530.0,111520.0,0.00297]
[1756436747075,0.9941243,111530.0,111520.0,0.00597]
[1756436747290,1.01079762,111530.0,111520.0,0.00597]
[1756436747474,1.01079762,111530.0,111520.0,0.00297]
[1756436747680,1.01079762,111530.0,111520.0,0.00497]
[1756436747981,0.01715057,111530.0,111520.0,0.00297]
[1756436748342,0.00047725,111530.0,111520.0,0.72668856]
[1756436748474,0.00047725,111530.0,111520.0,0.72444681]
[1756436748676,0.00047725,111530.0,111520.0,0.33842002]
[1756436748885,0.00047725,111530.0,111520.0,0.18786002]
[1756436749091,0.00047725,111530.0,111520.0,0.33762002]
[1756436749292,0.00047725,111530.0,111520.0,0.83288195]
[1756436749520,0.00047725,111530.0,111520.0,0.44885516]
[1756436749698,0.00047725,111530.0,111520.0,0.83488195]
[1756436749900,0.00047725,111530.0,111520.0,0.87550406]
[1756436751308,0.00047725,111530.0,111520.0,1.60153085]
[1756436751514,0.00047725,111530.0,111520.0,1.21250406]
[1756436751928,0.00047725,111530.0,111520.0,1.21850406]
[1756436752153,0.00047725,111530.0,111520.0,1.21050406]
[1756436752408,0.00047725,111530.0,111520.0,1.45974406]
[1756436752579,0.00047725,111530.0,111520.0,1.61954406]
[1756436753035,0.00047725,111530.0,111520.0,1.61654406]
[1756436753439,0.00047725,111530.0,111520.0,1.64749606]
[1756436753775,0.00047725,111530.0,111520.0,1.64149606]
[1756436754171,0.00047725,111530.0,111520.0,1.64549606]
[1756436754373,0.00047725,111530.0,111520.0,2.03152285]
[1756436754622,0.00047725,111530.0,111520.0,1.64549606]
[1756436756144,0.00047725,111530.0,111520.0,1.10866927]
[1756436756346,0.00047725,111530.0,111520.0,1.64553606]
[1756436759163,0.00047725,111530.0,111520.0,1.25950927]
[1756436759346,0.00047725,111530.0,111520.0,1.64553606]
[1756436760439,0.37520326,111580.0,111520.0,1.64553606]
[1756436760440,0.030162,111580.0,111560.0,0.17927572]
[1756436760656,0.030162,111580.0,111570.0,0.72064718]
[1756436760855,0.25306834,111590.0,111570.0,0.18137965]
[1756436761009,0.26978425,111590.0,111580.0,0.17924359]
[1756436761207,0.27189425,111590.0,111580.0,0.17924359]
[1756436761415,0.09266623,111590.0,111580.0,0.17924359]
[1756436761768,0.25517834,111590.0,111580.0,0.17829128]
[1756436761897,0.27188706,111590.0,111580.0,0.17829128]
[1756436762098,0.65791385,111590.0,111580.0,0.32933128]
[1756436762308,0.64120513,111590.0,111580.0,0.33133128]
[1756436762930,0.64120513,111590.0,111580.0,0.32933128]
[1756436763335,0.25517834,111590.0,111580.0,0.32933128]
[1756436763532,0.18454752,111590.0,111580.0,0.32933128]
[1756436763748,0.57057431,111590.0,111580.0,0.32933128]
[1756436763960,0.18454752,111590.0,111580.0,0.32933128]
[1756436764360,0.57057431,111590.0,111580.0,0.32933128]
[1756436764765,0.57057431,111590.0,111580.0,0.00204769]
[1756436764966,1.09054785,111590.0,111580.0,0.00204769]
[1756436765174,1.16117867,111590.0,111580.0,0.00204769]
[1756436765369,1.18812867,111590.0,111580.0,0.00204769]
[1756436766231,1.18912465,111590.0,111580.0,0.00204769]
[1756436766649,6.31232034,111590.0,111580.0,0.00204769]
[1756436766851,6.31857672,111590.0,111580.0,0.00204769]
[1756436767054,6.33360439,111590.0,111580.0,0.00204769]
[1756436767228,6.33360439,111590.0,111580.0,4.769e-05]
[1756436767433,6.32596257,111590.0,111580.0,4.769e-05]
[1756436767874,6.32496257,111590.0,111580.0,4.769e-05]
[1756436768088,6.32596257,111590.0,111580.0,4.769e-05]
[1756436768286,6.44983582,111590.0,111580.0,4.769e-05]
[1756436768460,6.41188773,111590.0,111580.0,4.769e-05]
[1756436768667,6.41288773,111590.0,111580.0,4.769e-05]
[1756436768845,6.41188773,111590.0,111580.0,4.769e-05]
[1756436769253,6.41488773,111590.0,111580.0,4.769e-05]
[1756436769677,6.41188773,111590.0,111580.0,4.769e-05]
[1756436770559,6.41288773,111590.0,111580.0,4.769e-05]
[1756436771089,6.38257496,111590.0,111580.0,4.769e-05]
[1756436771680,6.39660252,111590.0,111580.0,4.769e-05]
[1756436772104,6.49146176,111590.0,111580.0,1e-08]
[1756436772278,6.56790851,111590.0,111580.0,1e-08]
[1756436773070,6.41658851,111590.0,111580.0,1e-08]
[1756436773272,6.51790851,111590.0,111580.0,1e-08]
[1756436773512,6.56790851,111590.0,111580.0,1e-08]
[1756436774109,6.58713993,111590.0,111580.0,1e-08]
[1756436774924,6.53713993,111590.0,111580.0,1e-08]
[1756436775154,6.58613993,111590.0,111580.0,1e-08]
[1756436775358,6.59013993,111590.0,111580.0,1e-08]
[1756436775565,6.58913993,111590.0,111580.0,1e-08]
[1756436775934,6.57045305,111590.0,111580.0,1e-08]
[1756436776126,6.58714808,111590.0,111580.0,1e-08]
[1756436776324,6.59114808,111590.0,111580.0,1e-08]
[1756436776566,6.96768879,111590.0,111580.0,1e-08]
[1756436776785,0.55672499,111520.0,111510.0,0.0002]
[1756436776989,0.64502131,111520.0,111510.0,0.0002]
[1756436777187,0.64502131,111520.0,111510.0,0.00232]
[1756436777473,0.64502131,111520.0,111510.0,0.00487]
[1756436777679,0.17934002,111520.0,111510.0,0.18422611]
[1756436777835,0.55672333,111530.0,111510.0,0.18422611]
[1756436778038,1.01212573,111530.0,111520.0,0.00255]
[1756436778248,1.01212573,111530.0,111520.0,0.00463]
[1756436778440,0.02710608,111530.0,111520.0,0.18397002]
[1756436778658,0.37752805,111530.0,111520.0,0.18397002]
[1756436778864,0.55685199,111530.0,111520.0,0.18397002]
[1756436779086,0.37752805,111530.0,111520.0,0.18397002]
[1756436779289,0.37752805,111530.0,111520.0,0.18597002]
[1756436779735,0.37752805,111530.0,111520.0,0.18797002]
[1756436779935,0.37752805,111530.0,111520.0,0.18597002]
[1756436779936,0.00014308,111530.0,111520.0,0.18597002]
[1756436780175,0.00014308,111530.0,111520.0,0.25493002]
[1756436781313,0.00014308,111530.0,111520.0,0.40957002]
[1756436784415,0.00014308,111530.0,111520.0,0.25538002]
[1756436784630,0.56196199,111530.0,111520.0,0.40694002]
[1756436784821,0.63608899,111530.0,111520.0,0.005]
[1756436785149,0.72438531,111530.0,111520.0,0.005]
[1756436785346,0.72438531,111530.0,111520.0,0.003]
[1756436785756,0.0884394,111530.0,111520.0,0.18542002]
[1756436786093,0.26776334,111530.0,111520.0,0.18142002]
[1756436786311,0.26776334,111530.0,111520.0,0.33306002]
[1756436786485,0.00014308,111530.0,111520.0,0.33761002]
[1756436787688,0.00014308,111530.0,111520.0,0.33557002]
[1756436787885,0.00014308,111530.0,111520.0,0.33502002]
[1756436788090,0.55685199,111530.0,111520.0,0.33502002]
[1756436788413,0.17946702,111530.0,111520.0,0.33602002]
[1756436788788,0.00014308,111530.0,111520.0,0.33602002]
[1756436788992,0.17946702,111530.0,111520.0,0.33602002]
[1756436789158,0.00014308,111530.0,111520.0,0.33602002]
[1756436789561,0.00014308,111530.0,111520.0,0.33857002]
[1756436793722,0.00014308,111530.0,111520.0,0.44780516]
[1756436793970,0.00014308,111530.0,111520.0,0.82519013]
[1756436794833,0.00014308,111530.0,111520.0,0.84015013]
[1756436795042,0.00014308,111530.0,111520.0,1.24015013]
[1756436795245,0.00014308,111530.0,111520.0,1.24715013]
[1756436795455,0.00014308,111530.0,111520.0,1.58715013]
[1756436795871,1e-08,111530.0,111520.0,1.63782538]
[1756436796510,1e-08,111530.0,111520.0,1.99494694]
[1756436796715,1e-08,111530.0,111520.0,2.04494694]
[1756436796885,1e-08,111530.0,111520.0,2.04194694]
[1756436797779,1e-08,111530.0,111520.0,2.19194694]
[1756436797990,0.07063082,111580.0,111570.0,0.20019847]
[1756436798220,0.07077427,111580.0,111570.0,0.50937479]
[1756436798423,0.07077427,111580.0,111570.0,0.51145479]
[1756436798627,0.07077427,111580.0,111570.0,0.51400479]
[1756436798835,0.07077427,111580.0,111570.0,0.91400479]
[1756436799365,0.07077427,111580.0,111570.0,1.29138976]
[1756436799647,0.00014345,111580.0,111570.0,1.29238976]
[1756436801118,0.00014345,111580.0,111570.0,1.14246976]
[1756436801375,0.00014345,111580.0,111570.0,1.29334976]
[1756436802046,0.00014345,111580.0,111570.0,1.63434976]
[1756436802600,0.00014345,111580.0,111570.0,1.64343021]
[1756436802716,0.00014345,111580.0,111570.0,1.64339021]
[1756436803478,0.00014345,111580.0,111570.0,1.64335021]
[1756436804049,0.00014345,111580.0,111570.0,1.11416524]